Workbook

Sheet Cover
B1: Registered User: | G1: Single User License | AF1: © 2020 CivilWeb
B2: Your Logo / Company Details Here | G2: Project: | AF2: By:
G3: Calculation: | M3: Miragrid MSE Wall Design with Bridge Abutment
G4: FHWA NHI-10-025 | AF4: Approved:
G5: Sheet Number: | M5: Cover Sheet | T5: Date:
H7: Although all care and attention has been taken to ensure that this program is accurate, CivilWeb gives no guarentee that it is error free. In no event will Civil Web accept any responsibility for any errors or omissions from the program or from the user of the program, or for any special, incedental or consequential damages whatsoever arising from use of this program.
H14: This program should only be used by a suitably qualified Civil or Structural Engineer, and suitable efforts should be taken to verify the results.
H18: Reverse-engineering or decompiling of this program is not allowed.
H20: This program is registered to a single user, and should not be used by any other.
H23: Registered User;
H24: Single User License
H26: By using this program you confirm your understanding and agreement with the above terms and conditions.
H29: This program remains the property of CivilWeb.
H30: www.civilweb-spreadsheets.com
H32: Revision Schedule
H34: Rev | J34: Changes | Z34: Date
H35: 0 | J35: Original | Z35: 2020-08-01

Sheet Bridge Abutment - Miragrid
B1: Registered User: | G1: Single User License | AF1: © 2020 CivilWeb
G2: Project: | AF2: By: | BB2: Bridge Abutment Geometry
G3: Calculation: | M3: Miragrid MSE Wall Design with Bridge Abutment | BB3: Abutment Wall Height, Ha | BC3: =$BY$27 -> 14.763735 | BD3: ft
G4: FHWA NHI-10-025 | AF4: Approved:
G5: Sheet Number: | M5: 1 | T5: Date: | BG5: 10 | BN5: Tensile Strength | BO5: 5% strain | BP5: Creep Rupture Strength | BQ5: Long Term Design Strength | BR5: RFCR | BS5: RFID | BT5: RFD
BB6: b1 | BC6: =$BM$22 -> 1.640415 | BD6: ft | BE6: =BC12 -> 0.656166 | BF6: =BF21 -> 24.606225 | BG6: =$BG$5/MAX($BE$6:$BF$26)*BE6 -> 0.2247191011 | BH6: =$BG$5/MAX($BE$6:$BF$26)*BF6 -> 8.426966292 | BM6: Miragrid 2XT | BN6: 2000 | BP6: 1389 | BQ6: 1202 | BR6: =$X$86 -> 1.44 | BS6: =$X$87 -> 1.1 | BT6: =$X$88 -> 1.05 | BU6: =BN6/BR6/BS6/BT6*0.001 -> 1.202501203 | BV6: Miragrid 2XT
H7: Geometría del Estribo y Cargas | BB7: b2 | BC7: =$BM$23 -> 1.640415 | BD7: ft | BE7: =BE6+SUM(BC11) -> 10.498656 | BF7: =BF6 -> 24.606225 | BG7: =$BG$5/MAX($BE$6:$BF$26)*BE7 -> 3.595505618 | BH7: 8.426966292 | BM7: Miragrid 3XT | BN7: 3500 | BO7: 1056 | BP7: 2431 | BQ7: 2104 | BR7: 1.44 | BS7: 1.1 | BT7: 1.05 | BU7: 2.104377104 | BV7: Miragrid 3XT
BB8: b3 | BC8: =$BM$24 -> 1.640415 | BD8: ft | BE8: =BE7 -> 10.498656 | BF8: =BF7+BC13 -> 26.24664 | BG8: 3.595505618 | BH8: 8.988764045 | BI8: LL & DL | BM8: Miragrid 5XT | BN8: 4700 | BO8: 1740 | BP8: 3264 | BQ8: 2825 | BR8: 1.44 | BS8: 1.1 | BT8: 1.05 | BU8: 2.825877826 | BV8: Miragrid 5XT
H9: Ancho de zapata,b1 | N9: 0.5 | Q9: m | T9: Altra de zapata, h1 | Z9: 0.5 | AC9: m | BB9: b4 | BC9: =$BM$25 -> 1.640415 | BD9: ft | BE9: =BE8-BC10 -> 7.217826 | BF9: =BF8 -> 26.24664 | BG9: 2.471910112 | BH9: 8.988764045 | BM9: Miragrid 7XT | BN9: 5900 | BO9: 2160 | BP9: 4097 | BQ9: 3547 | BR9: 1.44 | BS9: 1.1 | BT9: 1.05 | BU9: 3.547378547 | BV9: Miragrid 7XT
H10: Ancho de zapata,b2 | N10: 0.5 | Q10: m | T10: Altra de zapata, h2 | Z10: 0.4 | AC10: m | BB10: b5 | BC10: =$BM$26 -> 3.28083 | BD10: ft | BE10: =BE9 -> 7.217826 | BF10: =BF9+BC14+BC15 -> 29.199387 | BG10: 2.471910112 | BH10: 10 | BM10: Miragrid 8XT | BN10: 7400 | BO10: 2520 | BP10: 5139 | BQ10: 4449 | BR10: 1.44 | BS10: 1.1 | BT10: 1.05 | BU10: 4.449254449 | BV10: Miragrid 8XT
H11: Ancho de zapata,b3 | N11: 0.5 | Q11: m | T11: Altra de zapata, h3 | Z11: 0.5 | AC11: m | BB11: Footing Base Width, bf | BC11: =SUM(BC6:BC10) -> 9.84249 | BD11: ft | BE11: =BE10-BC9 -> 5.577411 | BF11: =BF10 -> 29.199387 | BG11: 1.91011236 | BH11: 10 | BM11: Miragrid 10XT | BN11: 9500 | BO11: 3120 | BP11: 6597 | BQ11: 5712 | BR11: 1.44 | BS11: 1.1 | BT11: 1.05 | BU11: 5.711880712 | BV11: Miragrid 10XT
H12: Ancho de zapata,b4 | N12: 0.5 | Q12: m | BB12: Distance between Toe of Footing and Backface of MSE Panels, cf | BC12: =$BY$19 -> 0.656166 | BD12: ft | BE12: =BE11 -> 5.577411 | BF12: =BF11-BC15 -> 27.558972 | BG12: 1.91011236 | BH12: 9.438202247 | BM12: Miragrid 20XT | BN12: 13705 | BO12: 5340 | BP12: 9517 | BQ12: 8240 | BR12: 1.44 | BS12: 1.1 | BT12: 1.05 | BU12: 8.24013949 | BV12: Miragrid 20XT
H13: Ancho de zapata,b5 | N13: 1 | Q13: m | BB13: h1 | BC13: =$BY$13 -> 1.640415 | BD13: ft | BE13: =BE12-BC7 -> 3.936996 | BF13: =BF12 -> 27.558972 | BG13: 1.348314607 | BH13: 9.438202247 | BI13: =BG13 -> 1.348314607 | BJ13: =BH13 -> 9.438202247 | BM13: Miragrid 22XT | BN13: 20559 | BO13: 6700 | BP13: 14277 | BQ13: 12361 | BR13: 1.44 | BS13: 1.1 | BT13: 1.05 | BU13: 12.36111111 | BV13: Miragrid 22XT | BY13: =Z9*3.28083 -> 1.640415
H14: Altura del pad de carga, hb | Y14: 0.2 | AB14: m | BB14: h2 | BC14: =$BY$14 -> 1.312332 | BD14: ft | BE14: =BE13-BC8 -> 2.296581 | BF14: =BF12 -> 27.558972 | BG14: 0.7865168539 | BH14: 9.438202247 | BI14: =BI13 -> 1.348314607 | BJ14: =AVERAGE(BJ13,BJ15) -> 9.719101124 | BM14: Miragrid 24XT | BN14: 27415 | BO14: 7000 | BP14: 19038 | BQ14: 16483 | BR14: 1.44 | BS14: 1.1 | BT14: 1.05 | BU14: 16.48328523 | BV14: Miragrid 24XT | BY14: =Z10*3.28083 -> 1.312332
H15: Distancia del cimieto al panel de fachada, cf | Y15: 0.2 | AB15: m | BB15: h3 | BC15: =$BY$15 -> 1.640415 | BD15: ft | BE15: =BE14 -> 2.296581 | BF15: =BF14-BC14 -> 26.24664 | BG15: 0.7865168539 | BH15: 8.988764045 | BI15: =BI14 -> 1.348314607 | BJ15: =BH11 -> 10 | BY15: =Z11*3.28083 -> 1.640415
H16: Densidad del Concreto del Cimiento, γc | Y16: 24 | AB16: kN/m3 | BB16: Heighth of Footing, h | BC16: =SUM(BC13:BC15) -> 4.593162 | BD16: ft | BE16: =BE15-BC6 -> 0.656166 | BF16: =BF15 -> 26.24664 | BG16: 0.2247191011 | BH16: 8.988764045
H17: Carga Muerta Nominal sobre el Estribo, DL | Y17: 24 | AB17: kN/m | BB17: Bearing Pad Height, hb | BC17: =$BY$18 -> 0.656166 | BD17: ft | BE17: =BE16 -> 0.656166 | BF17: =BF16-BC13 -> 24.606225 | BG17: 0.2247191011 | BH17: 8.426966292 | BN17: =Y26&"m" -> 4m
H18: Carga Viva Nominal sobre el Estribo, LL | Y18: 12 | AB18: kN/m | BB18: Spread Footing Concrete, γc | BC18: =$BY$20 -> 152.7811284 | BD18: pcf | BI18: =Y25&"m" -> 3m | BN18: 0 | BO18: -0.5 | BP18: =$BG$5/MAX($BE$6:$BF$26)*BN18 -> 0 | BQ18: -0.5 | BY18: =Y14*3.28083 -> 0.656166
H19: Fuerza Nominal Lateral sobre el Estribo, F2 | Y19: 1 | AB19: kN/m | BE19: 0 | BF19: 0 | BG19: 0 | BH19: 0 | BI19: -0.5 | BJ19: =BH19 -> 0 | BN19: =AVERAGE(BN18,BN20) -> 6.56166 | BO19: =BO18 -> -0.5 | BP19: =$BG$5/MAX($BE$6:$BF$26)*BN19 -> 2.247191011 | BQ19: =BQ18 -> -0.5 | BY19: =Y15*3.28083 -> 0.656166
BE20: =BE19 -> 0 | BF20: =IF(BC67="",BC66,BC67) -> 9.84249 | BG20: 0 | BH20: 3.370786517 | BI20: =BI19 -> -0.5 | BJ20: =AVERAGE(BJ19,BJ21) -> 1.685393258 | BN20: =BY30 -> 13.12332 | BO20: =BO19 -> -0.5 | BP20: 4.494382022 | BQ20: =BQ19 -> -0.5 | BY20: =Y16*6.3658803480334 -> 152.7811284
H21: MSE Detalles de Geometría y Cargas | BE21: =BE20 -> 0 | BF21: =BC75 -> 24.606225 | BG21: 0 | BH21: 8.426966292 | BI21: =BI20 -> -0.5 | BJ21: =BH20 -> 3.370786517 | BY21: =Y17/1.356 -> 17.69911504
BB22: Geometry | BE22: =BE6 -> 0.656166 | BF22: =BF21 -> 24.606225 | BG22: 0.2247191011 | BH22: 8.426966292 | BI22: =Y23&"m" -> 4.5m | BM22: =N9*3.28083 -> 1.640415 | BY22: =Y18/1.356 -> 8.849557522
H23: Altura Expuesta del MME, Ha | Y23: 4.5 | AB23: m | BB23: Exposed Wall Height, He | BC23: =BC3 -> 14.763735 | BD23: ft | BI23: -0.5 | BJ23: =BJ21 -> 3.370786517 | BM23: =N10*3.28083 -> 1.640415 | BY23: =Y19/1.356 -> 0.7374631268
H24: Ángulo en el Talud del Pie | Y24: Horizontal | BB24: Angle of Facing Units | BD24: Degrees | BE24: =BE9 -> 7.217826 | BF24: =BF11 -> 29.199387 | BG24: 2.471910112 | BH24: 10 | BI24: =BI23 -> -0.5 | BJ24: =AVERAGE(BJ23,BJ25) -> 5.898876404 | BM24: =N11*3.28083 -> 1.640415
H25: ="Profundiad Minima de Desplante "&ROUNDUP(BC66*0.3048,2)&"m" -> Profundiad Minima de Desplante 0.61m | Y25: 3 | AB25: m | BB25: Effective Angle of Facing Units, θ | BC25: =IF(BC24<10,0,BC24) -> 0 | BD25: Degrees | BE25: =MAX(BE6:BF24) -> 29.199387 | BF25: =BF24 -> 29.199387 | BG25: 10 | BH25: 10 | BI25: =BI24 -> -0.5 | BJ25: =BH22 -> 8.426966292 | BM25: =N12*3.28083 -> 1.640415
H26: Longitud del Refuerzo, L | Y26: 4 | AB26: m | BB26: Backslope Angle | BD26: Degrees | BE26: =BC29 -> 13.12332 | BG26: 4.494382022 | BM26: =N13*3.28083 -> 3.28083
H27: Periodo de Diseño | Y27: 100 | AB27: años | BB27: Backslope Height | BD27: ft | BE27: =BE7 -> 10.498656 | BF27: =BF7 -> 24.606225 | BG27: 3.595505618 | BH27: 8.426966292 | BY27: =Y23*3.28083 -> 14.763735
H28: Carga de Tráfico, heq | Y28: 0.6 | AB28: m | BB28: Toe Slope Angle | BC28: =$Y$24 -> Horizontal | BE28: =BE25 -> 29.199387 | BF28: =BF27 -> 24.606225 | BG28: 10 | BH28: 8.426966292
H29: Carga de Tráfico, heqF | Y29: 1 | AB29: m | BB29: Length of Reinforcement, L | BC29: =$BY$30 -> 13.12332 | BD29: ft | BY29: =Y25*3.28083 -> 9.84249
H30: Limite de Servicio Factorado, qnf-ser | Y30: 400 | AB30: kN/m2 | BB30: Broken Backslope? | BF30: Yes | BY30: =Y26*3.28083 -> 13.12332
H31: Limite de Resistencia Factorado qnf-str | Y31: 400 | AB31: kN/m2 | BF31: No | BG31: -1 | BH31: =BH20 -> 3.370786517
BG32: 0 | BH32: =BH31 -> 3.370786517 | BY32: =Y28*3.28083 -> 1.968498
H33: Detalles del Suelo | BB33: Loading | BG33: 11 | BH33: =BH32 -> 3.370786517 | BY33: =Y29*3.28083 -> 3.28083
BB34: Nominal Dead Load Reaction Force on Abutment, DL | BC34: =$BY$21 -> 17.69911504 | BD34: k/ft | BY34: =Y30*0.020885434273039 -> 8.354173709
H35: Suelo de Cimentación, Ángulo de Fricción, φ'f | Y35: 32 | AB35: grados | BB35: Nominal Live Load Reaction Force on Abutment, LL | BC35: =$BY$22 -> 8.849557522 | BD35: k/ft | BG35: =BG21 -> 0 | BH35: =BG21 -> 0 | BY35: =Y31*0.020885434273039 -> 8.354173709
H36: Suelo de Cimentación Limite de Servicio qnf-ser | Y36: 500 | AB36: kN/m2 | BB36: Nominal Lateral Friction Force at the bearing level, F2 | BC36: =$BY$23 -> 0.7374631268 | BD36: k/ft | BG36: =BG26 -> 4.494382022 | BH36: =BH35 -> 0
H37: Suelo de Cimentación Limite de Resistencia, qnf-str | Y37: 500 | AB37: kN/m2 | BG37: =BG36 -> 4.494382022 | BH37: =BH27 -> 8.426966292
H38: Suelo Reforzado Ángulo de Fricción, φ'r | Y38: 32 | AB38: grados | BB38: Performance | BK38: x | BL38: y
H39: Suelo Reforzado, Densidad, γr | Y39: 19 | AB39: kN/m3 | BF39: Horizontal | BG39: =BC23/10 -> 1.4763735 | BJ39: Level 1 | BK39: =$BF$19 -> 0 | BL39: =$BC$68-BC718 -> 23.621976 | BM39: =$BG$5/MAX($BE$6:$BF$26)*BK39 -> 0 | BN39: =IFERROR($BG$5/MAX($BE$6:$BF$26)*BL39,NA()) -> 8.08988764
H40: Suelo Reforzado Coeficiente de Uniformidad, Cu | Y40: 6 | BB40: Design Life | BC40: =$Y$27 -> 100 | BD40: Years | BF40: 3H:1V | BG40: =BC23/10 -> 1.4763735 | BK40: =AVERAGE(BK39,BK41) -> 6.56166 | BL40: =BL39 -> 23.621976 | BM40: 2.247191011 | BN40: =IFERROR($BG$5/MAX($BE$6:$BF$26)*BL40,NA()) -> 8.08988764 | BY40: =Y36*0.020885434273039 -> 10.44271714
H41: Suelo Retenido, Ángulo de Fricción φ'b | Y41: 32 | AB41: grados | BF41: 2H:1V | BG41: =BC23/7 -> 2.109105 | BK41: =$BC$29 -> 13.12332 | BL41: =BL40 -> 23.621976 | BM41: 4.494382022 | BN41: 8.08988764 | BY41: =Y37*0.020885434273039 -> 10.44271714
H42: Suelo Retenido, Densidad, γb | Y42: 19 | AB42: kN/m3 | BF42: 1.5H:1V | BG42: =BC23/5 -> 2.952747 | BJ42: Level 2 | BK42: =$BF$19 -> 0 | BL42: =$BC$68-BC719 -> 21.653478 | BM42: 0 | BN42: 7.415730337
H43: Suelo Detrás del Estribo (zapata) , Ángulo de Fricción, φ'2 | Y43: 32 | AB43: grados | BK43: =AVERAGE(BK42,BK44) -> 6.56166 | BL43: =BL42 -> 21.653478 | BM43: 2.247191011 | BN43: 7.415730337 | BY43: =Y39*6.3658803480334 -> 120.9517266
H44: Suelo Detrás del Estribo, Densidad, γ2 | Y44: 19 | AB44: kN/m3 | BB44: Soil Details | BK44: =$BC$29 -> 13.12332 | BL44: =BL43 -> 21.653478 | BM44: 4.494382022 | BN44: 7.415730337
BB45: Foundation Soil, Friction Angle, φ'f | BC45: =$Y$35 -> 32 | BD45: degrees | BJ45: Level 3 | BK45: =$BF$19 -> 0 | BL45: =$BC$68-BC720 -> 19.68498 | BM45: 0 | BN45: 6.741573034
B46: Your Logo / Company Details Here | G46: Project: | AF46: By: | BB46: Foundation Soil, density, γf | BD46: pcf | BK46: =AVERAGE(BK45,BK47) -> 6.56166 | BL46: =BL45 -> 19.68498 | BM46: 2.247191011 | BN46: 6.741573034 | BY46: =Y42*6.3658803480334 -> 120.9517266
G47: Calculation: | M47: Miragrid MSE Wall Design with Bridge Abutment | BB47: Factored Bearing Resistance of Foundation Soil | BK47: =$BC$29 -> 13.12332 | BL47: =BL46 -> 19.68498 | BM47: 4.494382022 | BN47: 6.741573034
G48: FHWA NHI-10-025 | AF48: Approved: | BB48: Foundation Soil Service Limit, qnf-ser | BC48: =$BY$40 -> 10.44271714 | BD48: ksf | BJ48: Level 4 | BK48: =$BF$19 -> 0 | BL48: =$BC$68-BC721 -> 17.716482 | BM48: 0 | BN48: 6.06741573 | BY48: =Y44*6.3658803480334 -> 120.9517266
G49: Sheet Number: | M49: 2 | T49: Date: | BB49: Foundation Soil Strength Limit, qnf-str | BC49: =$BY$41 -> 10.44271714 | BD49: ksf | BK49: =AVERAGE(BK48,BK50) -> 6.56166 | BL49: =BL48 -> 17.716482 | BM49: 2.247191011 | BN49: 6.06741573
BB50: MSE Wall Service Limit, qnf-ser | BC50: =$BY$34 -> 8.354173709 | BD50: ksf | BK50: =$BC$29 -> 13.12332 | BL50: =BL49 -> 17.716482 | BM50: 4.494382022 | BN50: 6.06741573
H51: Load Combination Factors | BB51: MSE Wall Strength Limit, qnf-str | BC51: =$BY$35 -> 8.354173709 | BD51: ksf | BJ51: Level 5 | BK51: =$BF$19 -> 0 | BL51: =$BC$68-BC722 -> 15.747984 | BM51: 0 | BN51: 5.393258427
BB52: Groundwater?? | BK52: =AVERAGE(BK51,BK53) -> 6.56166 | BL52: =BL51 -> 15.747984 | BM52: 2.247191011 | BN52: 5.393258427
H53: Load Factors EV | V53: Load Factors LL | BB53: Reinforced Wall Fill, Friction Angle, φ'r | BC53: =$Y$38 -> 32 | BD53: degrees | BK53: =$BC$29 -> 13.12332 | BL53: =BL52 -> 15.747984 | BM53: 4.494382022 | BN53: 5.393258427
H54: Strength 1 (Max) | N54: 1.35 | V54: Strength 1 (Max) | AB54: 1.75 | BB54: Reinforced Wall Fill, density, γr | BC54: =$BY$43 -> 120.9517266 | BD54: pcf | BJ54: Level 6 | BK54: =$BF$19 -> 0 | BL54: =$BC$68-BC723 -> 13.779486 | BM54: 0 | BN54: 4.719101124
H55: Strength 2 (Min) | N55: 1 | V55: Strength 2 (Min) | AB55: 1.75 | BB55: Reinforced Wall Fill, pH | BK55: =AVERAGE(BK54,BK56) -> 6.56166 | BL55: =BL54 -> 13.779486 | BM55: 2.247191011 | BN55: 4.719101124
H56: Service 1 | N56: 1 | V56: Service 1 | AB56: 1 | BB56: Reinforced Wall Fill, Max Size | BD56: in | BK56: =$BC$29 -> 13.12332 | BL56: =BL55 -> 13.779486 | BM56: 4.494382022 | BN56: 4.719101124
H57: Load Factors ES | V57: Load Factors DC | BB57: Reinforced Wall Fill Coefficient of Uniformity, Cu | BC57: =$Y$40 -> 6 | BJ57: Level 7 | BK57: =$BF$19 -> 0 | BL57: =$BC$68-BC724 -> 11.810988 | BM57: 0 | BN57: 4.04494382
H58: Strength 1 (Max) | N58: 1.5 | V58: Strength 1 (Max) | AB58: 1.25 | BB58: Retained Backfill, Friction Angle, φ'b | BC58: =$Y$41 -> 32 | BD58: degrees | BK58: =AVERAGE(BK57,BK59) -> 6.56166 | BL58: =BL57 -> 11.810988 | BM58: 2.247191011 | BN58: 4.04494382
H59: Strength 2 (Min) | N59: 0.75 | V59: Strength 2 (Min) | AB59: 0.9 | BB59: Retained Backfill, density, γb | BC59: =$BY$46 -> 120.9517266 | BD59: pcf | BK59: =$BC$29 -> 13.12332 | BL59: =BL58 -> 11.810988 | BM59: 4.494382022 | BN59: 4.04494382
H60: Service 1 | N60: 1 | V60: Service 1 | AB60: 1 | BB60: Spread Footing backfill, Friction Angle, φ'2 | BC60: =$Y$43 -> 32 | BD60: degrees | BJ60: Level 8 | BK60: =$BF$19 -> 0 | BL60: =$BC$68-BC725 -> 9.84249 | BM60: 0 | BN60: 3.370786517
H61: Load Factors EH | V61: Load Factors FR | BB61: Spread Footing backfill, density, γ2 | BC61: =$BY$48 -> 120.9517266 | BD61: pcf | BK61: =AVERAGE(BK60,BK62) -> 6.56166 | BL61: =BL60 -> 9.84249 | BM61: 2.247191011 | BN61: 3.370786517
H62: Strength 1 (Max) | N62: 1.5 | V62: Strength 1 (Max) | AB62: 1 | BK62: =$BC$29 -> 13.12332 | BL62: =BL61 -> 9.84249 | BM62: 4.494382022 | BN62: 3.370786517
H63: Strength 2 (Min) | N63: 0.9 | V63: Strength 2 (Min) | AB63: 1 | BJ63: Level 9 | BK63: =$BF$19 -> 0 | BL63: =$BC$68-BC726 -> 7.873992 | BM63: 0 | BN63: 2.696629213
H64: Service 1 | N64: 1 | V64: Service 1 | AB64: 1 | BK64: =AVERAGE(BK63,BK65) -> 6.56166 | BL64: =BL63 -> 7.873992 | BM64: 2.247191011 | BN64: 2.696629213
BK65: =$BC$29 -> 13.12332 | BL65: =BL64 -> 7.873992 | BM65: 4.494382022 | BN65: 2.696629213
H66: Resistance Factors | BB66: Minimum Embedment Depth | BC66: =MAX(2,VLOOKUP(BC28,BF39:BG42,2,FALSE)) -> 2 | BD66: ft | BJ66: Level 10 | BK66: =$BF$19 -> 0 | BL66: =$BC$68-BC727 -> 5.905494 | BM66: 0 | BN66: 2.02247191
BB67: Override | BC67: =$BY$29 -> 9.84249 | BD67: ft | BK67: =AVERAGE(BK66,BK68) -> 6.56166 | BL67: =BL66 -> 5.905494 | BM67: 2.247191011 | BN67: 2.02247191
H68: Sliding of Spread Footing on MSE Wall, φs | V68: 0.8 | BB68: Design Height of Wall, H | BC68: =IF(BC67="",BC66,BC67)+BC23 -> 24.606225 | BD68: ft | BK68: =$BC$29 -> 13.12332 | BL68: =BL67 -> 5.905494 | BM68: 4.494382022 | BN68: 2.02247191
H69: Sliding of MSE Wall on Foundation Soil, φs | V69: 1 | BJ69: Level 11 | BK69: =$BF$19 -> 0 | BL69: =$BC$68-BC728 -> 3.936996 | BM69: 0 | BN69: 1.348314607
H70: Bearing Resistance, φb | V70: 0.65 | BB70: Unfactored Loads | BK70: =AVERAGE(BK69,BK71) -> 6.56166 | BL70: =BL69 -> 3.936996 | BM70: 2.247191011 | BN70: 1.348314607
H71: Tensile Resistance & Connectors, φt | V71: 0.9 | BB71: Angle I | BC71: =DEGREES(ATAN(BC27/(2*BC68))) -> 0 | BD71: degrees | BK71: =$BC$29 -> 13.12332 | BL71: =BL70 -> 3.936996 | BM71: 4.494382022 | BN71: 1.348314607 | BT71: =X77*3.28083 -> 0.984249
H72: Pullout Resistance, φp | V72: 0.9 | BB72: Slope Crest, h | BC72: =IF(BC30="Yes",BC68+BC27,BC68+BC29*TAN(RADIANS(BC26))) -> 24.606225 | BD72: ft | BJ72: Level 12 | BK72: =$BF$19 -> 0 | BL72: =$BC$68-BC729 -> 1.968498 | BM72: 0 | BN72: 0.6741573034 | BT72: =X78*3.28083 -> 0.656166
BB73: Nominal Slope of Backfill Behind Wall, β | BC73: =IF(BC30="Yes",BC71,BC26) -> 0 | BD73: degrees | BK73: =AVERAGE(BK72,BK74) -> 6.56166 | BL73: =BL72 -> 1.968498 | BM73: 2.247191011 | BN73: 0.6741573034 | BT73: =X79*3.28083 -> 1.968498
H74: Soil Reinforcement Details - Geosynthetics | BB74: Angle of Friction betweeen retained backfill and reinforced soil, δ | BC74: =BC73 -> 0 | BD74: degrees | BK74: =$BC$29 -> 13.12332 | BL74: =BL73 -> 1.968498 | BM74: 4.494382022 | BN74: 0.6741573034
BB75: Total Height of Wall and Slope | BC75: =MIN(BC72,BC68+BC29*TAN(RADIANS(BC26))) -> 24.606225 | BD75: ft | BJ75: Level 13 | BK75: =$BF$19 -> 0 | BL75: =$BC$68-BC730 -> 0.656166 | BM75: 0 | BN75: 0.2247191011
H76: Vertical Layout of Soil Reinforcements | BK76: =AVERAGE(BK75,BK77) -> 6.56166 | BL76: =BL75 -> 0.656166 | BM76: 2.247191011 | BN76: 0.2247191011
H77: Depth to Top Layer | X77: 0.3 | AA77: m | BK77: =$BC$29 -> 13.12332 | BL77: =BL76 -> 0.656166 | BM77: 4.494382022 | BN77: 0.2247191011
H78: Height of Bottom Layer | X78: 0.2 | AA78: m | BJ78: Level 14 | BK78: =$BF$19 -> 0 | BL78: =$BC$68-BC731 ->  | BM78: 0
H79: Spacing of Layers | X79: 0.6 | AA79: m | BK79: =AVERAGE(BK78,BK80) -> 6.56166 | BL79: =BL78 ->  | BM79: 2.247191011
H80: Pullout Failure Factors | BB80: r | BC80: =(1+SQRT(SIN(RADIANS(BC58+BC74))*SIN(RADIANS(BC58-BC73))/(SIN(RADIANS(90-BC25-BC74))*SIN(RADIANS(90-BC25+BC73)))))^2 -> 2.340652955 | BK80: =$BC$29 -> 13.12332 | BL80: =BL79 ->  | BM80: 4.494382022
H81: Pullout Resistance Factor, F* | X81: 0.45 | BB81: Kab | BC81: =IF(BC26=0,(1-SIN(RADIANS(BC58)))/(1+SIN(RADIANS(BC58))),SIN(RADIANS(90-BC25+BC58))^2/(BC80*SIN(RADIANS(90-BC25))^2*SIN(RADIANS(90-BC25-BC74)))) -> 0.3072585245 | BJ81: Level 15 | BK81: =$BF$19 -> 0 | BL81: =$BC$68-BC732 ->  | BM81: 0
H82: Scale Correction Factor, α | X82: 0.8 | BB82: Traffic Load, heq | BC82: =$BY$32 -> 1.968498 | BD82: ft | BE82: cannot be surcharge loads on sloped backfills | BK82: =AVERAGE(BK81,BK83) -> 6.56166 | BL82: =BL81 ->  | BM82: 2.247191011
H83: C | X83: 2 | BB83: Traffic Load, heqF | BC83: =$BY$33 -> 3.28083 | BD83: ft | BK83: =$BC$29 -> 13.12332 | BM83: 4.494382022
H84: Coverage Ratio, Rc | X84: 1 | BB84: F1 | BC84: =0.5*BC59*BC72^2*BC81*0.001 -> 11.25060816 | BD84: k/lft | BJ84: Level 16 | BK84: =$BF$19 -> 0 | BL84: =$BC$68-BC733 ->  | BM84: 0
H85: Soil Reinforcement Resistance, Tal | BB85: FH1 | BC85: =BC84*COS(RADIANS(BC71)) -> 11.25060816 | BD85: k/lft | BK85: =AVERAGE(BK84,BK86) -> 6.56166 | BL85: =BL84 ->  | BM85: 2.247191011
H86: Creep Factor, RFCR | X86: 1.44 | BB86: FV1 | BC86: =BC84*SIN(RADIANS(BC71)) -> 0 | BD86: k/lft | BK86: =$BC$29 -> 13.12332 | BM86: 4.494382022
H87: Durability Factor, RFD | X87: 1.1 | BB87: q | BC87: =BC82*BC59 -> 238.0932319 | BD87: psf | BJ87: Level 17 | BK87: =$BF$19 -> 0 | BL87: =$BC$68-BC734 ->  | BM87: 0
H88: Installation Factor, RFID | X88: 1.05 | BB88: F2 | BC88: =BC87*BC72*BC81*0.001 -> 1.800097306 | BD88: k/lft | BK88: =AVERAGE(BK87,BK89) -> 6.56166 | BL88: =BL87 ->  | BM88: 2.247191011
BB89: FH2 | BC89: =BC88*COS(RADIANS(BC71)) -> 1.800097306 | BD89: k/lft | BK89: =$BC$29 -> 13.12332 | BM89: 4.494382022
B90: Your Logo / Company Details Here | G90: Project: | AF90: By: | BB90: FV2 | BC90: =BC88*SIN(RADIANS(BC71)) -> 0 | BD90: k/lft | BJ90: Level 18 | BK90: =$BF$19 -> 0 | BL90: =$BC$68-BC735 ->  | BM90: 0
G91: Calculation: | M91: Miragrid MSE Wall Design with Bridge Abutment | BB91: V1 | BC91: =BC54*BC68*BC29*0.001 -> 39.05717091 | BD91: k/lft | BK91: =AVERAGE(BK90,BK92) -> 6.56166 | BL91: =BL90 ->  | BM91: 2.247191011
G92: FHWA NHI-10-025 | AF92: Approved: | BB92: V2 | BC92: =IF(BC30="Yes",0.5*BC59*BC29*(BC72-BC68)*0.001,0.5*BC29^2*TAN(RADIANS(BC26))*BC59*0.001) -> 0 | BD92: k/lft | BK92: =$BC$29 -> 13.12332 | BM92: 4.494382022
G93: Sheet Number: | M93: 3 | T93: Date: | BB93: FT | BC93: =0.5*BC81*BC59*BC75^2*0.001 -> 11.25060816 | BD93: k/lft | BJ93: Level 19 | BK93: =$BF$19 -> 0 | BL93: =$BC$68-BC736 ->  | BM93: 0
BB94: FH | BC94: =BC93*COS(RADIANS(BC73)) -> 11.25060816 | BD94: k/lft | BK94: =AVERAGE(BK93,BK95) -> 6.56166 | BL94: =BL93 ->  | BM94: 2.247191011
H95: Results - Abutment Footing Design | BK95: =$BC$29 -> 13.12332 | BM95: 4.494382022
BB96: MV1 | BC96: =BC91*BC29*0.5 -> 256.279876 | BD96: k-ft/ft | BJ96: Level 20 | BK96: =$BF$19 -> 0 | BL96: =$BC$68-BC737 ->  | BM96: 0
H97: Sliding of the Abutment Footing | BB97: MV2 | BC97: =BC92*2/3*BC29 -> 0 | BD97: k-ft/ft | BK97: =AVERAGE(BK96,BK98) -> 6.56166 | BL97: =BL96 ->  | BM97: 2.247191011
BB98: FTV | BC98: =0.5*BC54*BC72^2*BC81*SIN(RADIANS(BC26))*0.001 -> 0 | BD98: k/lft | BK98: =$BC$29 -> 13.12332 | BM98: 4.494382022
P99: Str 1 (Max) | T99: Str 1 (Min) | X99: Critical | BB99: MFTV | BC99: =BC98*BC29 -> 0 | BD99: k-ft/ft | BJ99: Level 21 | BK99: =$BF$19 -> 0 | BL99: =$BC$68-BC738 ->  | BM99: 0
H100: Sliding Force | P100: =ROUNDUP(BC239*1.3558179483314,2)&" kN/m" -> 3.13 kN/m | T100: =ROUNDUP(BC247*1.3558179483314,2)&" kN/m" -> 2.81 kN/m | X100: =ROUNDUP(BC264*1.3558179483314,2)&" kN/m" -> 3.13 kN/m | BB100: FTH | BC100: =0.5*BC54*BC72^2*BC81*COS(RADIANS(BC26))*0.001 -> 11.25060816 | BD100: k/lft | BK100: =AVERAGE(BK99,BK101) -> 6.56166 | BL100: =BL99 ->  | BM100: 2.247191011
H101: Sliding Resistance | P101: =ROUNDUP(BC242*1.3558179483314,2)&" kN/m" -> 19.35 kN/m | T101: =ROUNDUP(BC250*1.3558179483314,2)&" kN/m" -> 13.95 kN/m | X101: =ROUNDUP(BC263*1.3558179483314,2)&" kN/m" -> 13.95 kN/m | BB101: MFTH (MF1) | BC101: =BC100*BC72/3 -> 92.27833193 | BD101: k-ft/ft | BK101: =$BC$29 -> 13.12332 | BM101: 4.494382022
H102: Utilisation | P102: =BC244 -> 0.1616198762 | T102: =BC252 -> 0.2012499881 | X102: =BC266 -> 0.2241141874 | AF102: =IF(MAX(P102:AA102)>1,"Not Valid","Valid") -> Valid | BJ102: Level 22 | BK102: =$BF$19 -> 0 | BL102: =$BC$68-BC739 ->  | BM102: 0
BB103: Vs | BC103: =BC46*BC82*BC29*0.001 -> 0 | BD103: k/ft | BK103: =AVERAGE(BK102,BK104) -> 6.56166 | BL103: =BL102 ->  | BM103: =$BG$5/MAX($BE$6:$BF$26)*BK103 -> 2.247191011
H104: Eccentricity of the Abutment Footing | BB104: MVs | BC104: =BC103*BC29*0.5 -> 0 | BD104: k-ft/ft | BK104: =$BC$29 -> 13.12332 | BM104: 4.494382022 | BN104: =IFERROR($BG$5/MAX($BE$6:$BF$26)*BL104,NA()) -> 
BB105: MF2 | BC105: =BC88*BC75/2 -> 22.14679966 | BD105: k-ft/ft | BJ105: Level 23 | BK105: =$BF$19 -> 0 | BL105: =$BC$68-BC740 ->  | BM105: 0
P106: Str 1 (Max) | T106: Str 1 (Min) | X106: Critical | BK106: =AVERAGE(BK105,BK107) -> 6.56166 | BL106: =BL105 ->  | BM106: 2.247191011
H107: Total Overturning Moments | P107: =ROUNDUP(BC341*0.4133088,1)&" kNm/m" -> 2.5 kNm/m | T107: =ROUNDUP(BC351*0.4133088,1)&" kNm/m" -> 2.3 kNm/m | X107: =ROUNDUP(BC371*0.4133088,1)&" kNm/m" -> 2.5 kNm/m | BB107: Ka1 | BC107: =(1-SIN(RADIANS(BC53)))/(1+SIN(RADIANS(BC53))) -> 0.3072585245 | BK107: =$BC$29 -> 13.12332 | BM107: 4.494382022
H108: Total Resisting Moments | P108: =ROUNDUP(BC342*0.4133088,1)&" kNm/m" -> 45 kNm/m | T108: =ROUNDUP(BC352*0.4133088,1)&" kNm/m" -> 32.5 kNm/m | X108: =ROUNDUP(BC372*0.4133088,1)&" kNm/m" -> 32.5 kNm/m | BB108: Ka2 | BC108: =(1-SIN(RADIANS(BC60)))/(1+SIN(RADIANS(BC60))) -> 0.3072585245 | BJ108: Level 24 | BK108: =$BF$19 -> 0 | BL108: =$BC$68-BC741 ->  | BM108: 0
H109: Net Moment | P109: =ROUNDUP(BC343*0.4133088,1)&" kNm/m" -> 42.6 kNm/m | T109: =ROUNDUP(BC353*0.4133088,1)&" kNm/m" -> 30.3 kNm/m | X109: =ROUNDUP(BC373*0.4133088,1)&" kNm/m" -> 30.1 kNm/m | BB109: Ka3 | BC109: =(1-SIN(RADIANS(BC58)))/(1+SIN(RADIANS(BC58))) -> 0.3072585245 | BK109: =AVERAGE(BK108,BK110) -> 6.56166 | BL109: =BL108 ->  | BM109: 2.247191011
H110: Total Vertical Forces | P110: =ROUNDUP(BC344*1.3558179483314,2)&" kN/m" -> 38.7 kN/m | T110: =ROUNDUP(BC354*1.3558179483314,2)&" kN/m" -> 27.91 kN/m | X110: =ROUNDUP(BC374*1.3558179483314,2)&" kN/m" -> 27.91 kN/m | BB110: V0 | BC110: =BC61*(BC14+BC15)*BC10*0.001 -> 1.171715127 | BD110: k/ft | BK110: =$BC$29 -> 13.12332 | BM110: 4.494382022
H111: Eccentricity of Resultant | P111: =ROUNDUP(BC346*0.3048,2)&" m" -> 0.41 m | T111: =ROUNDUP(BC356*0.3048,2)&" m" -> 0.42 m | X111: =ROUNDUP(BC376*0.3048,2)&" m" -> 0.43 m | BB111: V1 | BC111: =BC18*BC11*BC13*0.001 -> 2.466768689 | BD111: k/ft | BJ111: Level 25 | BK111: =$BF$19 -> 0 | BL111: =$BC$68-BC742 ->  | BM111: 0
H112: Limiting Eccentricity | P112: =ROUNDUP(BC347*0.3048,2)&" m" -> 0.75 m | T112: =ROUNDUP(BC357*0.3048,2)&" m" -> 0.75 m | X112: =ROUNDUP(BC377*0.3048,2)&" m" -> 0.75 m | BB112: V2 | BC112: =BC18*(BC7+BC8+BC9)*BC14*0.001 -> 0.9867074755 | BD112: k/ft | BK112: =AVERAGE(BK111,BK113) -> 6.56166 | BL112: =BL111 ->  | BM112: 2.247191011
H113: Utilisation | P113: =BC348 -> 0.5341311691 | T113: =BC358 -> 0.5561826033 | X113: =BC378 -> 0.5632944227 | AF113: =IF(MAX(P113:AA113)>1,"Not Valid","Valid") -> Valid | BB113: V3 | BC113: =BC18*BC9*BC15*0.001 -> 0.4111281148 | BD113: k/ft | BK113: =$BC$29 -> 13.12332 | BM113: 4.494382022
BB114: V4 | BC114: =BC68*BC29*BC54*0.001 -> 39.05717091 | BD114: k/ft | BJ114: Level 26 | BK114: =$BF$19 -> 0 | BL114: =$BC$68-BC743 ->  | BM114: 0
H115: Bearing Resistance at Base of Abutment Footing | BB115: V5 | BC115: =BC61*BC16*BC29*0.001 -> 7.290671902 | BD115: k/ft | BK115: =AVERAGE(BK114,BK116) -> 6.56166 | BL115: =BL114 ->  | BM115: 2.247191011
BB116: Vs | BC116: =BC61*BC83*BC29*0.001 -> 5.207622787 | BD116: k/ft | BK116: =$BC$29 -> 13.12332 | BM116: 4.494382022
P117: Str 1 (Max) | T117: Str 1 (Min) | X117: Ser 1 | AB117: Critical | BB117: Vs1 | BC117: =BC61*BC83*(BC9+BC10)*0.001 -> 1.952858545 | BD117: k/ft | BJ117: Level 27 | BK117: =$BF$19 -> 0 | BL117: =$BC$68-BC744 ->  | BM117: 0
H118: Total Overturning Moment | P118: =ROUNDUP(BC539*0.4133088,1)&" kNm/m" -> 2.5 kNm/m | T118: =ROUNDUP(BC555*0.4133088,1)&" kNm/m" -> 2.3 kNm/m | X118: =ROUNDUP(BC571*0.4133088,1)&" kNm/m" -> 1.9 kNm/m | AB118: =ROUNDUP(BC587*0.4133088,1)&" kNm/m" -> 2.5 kNm/m | BB118: F1 | BC118: =0.5*BC108*BC61*BC16^2*0.001 -> 0.392021191 | BD118: k/ft | BK118: =AVERAGE(BK117,BK119) -> 6.56166 | BL118: =BL117 ->  | BM118: 2.247191011
H119: Total Resisting Moment | P119: =ROUNDUP(BC540*0.4133088,1)&" kNm/m" -> 76.4 kNm/m | T119: =ROUNDUP(BC556*0.4133088,1)&" kNm/m" -> 63.9 kNm/m | X119: =ROUNDUP(BC572*0.4133088,1)&" kNm/m" -> 53.6 kNm/m | AB119: =ROUNDUP(BC588*0.4133088,1)&" kNm/m" -> 63.9 kNm/m | BB119: F2 | BC119: =BC36 -> 0.7374631268 | BD119: k/ft | BK119: =$BC$29 -> 13.12332 | BM119: 4.494382022
H120: Net Moment | P120: =ROUNDUP(BC541*0.4133088,1)&" kNm/m" -> 74 kNm/m | T120: =ROUNDUP(BC557*0.4133088,1)&" kNm/m" -> 61.7 kNm/m | X120: =ROUNDUP(BC573*0.4133088,1)&" kNm/m" -> 51.8 kNm/m | AB120: =ROUNDUP(BC589*0.4133088,1)&" kNm/m" -> 61.5 kNm/m | BB120: F3 | BC120: =BC109*BC61*BC16*BC68*0.001 -> 4.200227047 | BD120: k/ft | BJ120: Level 28 | BK120: =$BF$19 -> 0 | BL120: =$BC$68-BC745 ->  | BM120: 0
H121: Total Vertical Forces | P121: =ROUNDUP(BC542*1.3558179483314,2)&" kN/m" -> 64.33 kN/m | T121: =ROUNDUP(BC558*1.3558179483314,2)&" kN/m" -> 53.54 kN/m | X121: =ROUNDUP(BC574*1.3558179483314,2)&" kN/m" -> 45.48 kN/m | AB121: =ROUNDUP(BC590*1.3558179483314,2)&" kN/m" -> 53.54 kN/m | BB121: F4 | BC121: =0.5*BC109*BC59*BC68^2*0.001 -> 11.25060816 | BD121: k/ft | BK121: =AVERAGE(BK120,BK122) -> 6.56166 | BL121: =BL120 ->  | BM121: 2.247191011
H122: Eccentricity of Resultant | P122: =ROUNDUP(BC544*0.3048,2)&" m" -> 0.36 m | T122: =ROUNDUP(BC560*0.3048,2)&" m" -> 0.35 m | X122: =ROUNDUP(BC576*0.3048,2)&" m" -> 0.37 m | AB122: =ROUNDUP(BC592*0.3048,2)&" m" -> 0.36 m | BB122: Fs1 | BC122: =BC108*BC59*BC83*BC16*0.001 -> 0.5600302729 | BD122: k/ft | BK122: =$BC$29 -> 13.12332 | BM122: 4.494382022
H123: Limiting Eccentricity | P123: =ROUNDUP(BC545*0.3048,2)&" m" -> 0.75 m | T123: =ROUNDUP(BC561*0.3048,2)&" m" -> 0.75 m | X123: =ROUNDUP(BC577*0.3048,2)&" m" -> 0.5 m | AB123: =ROUNDUP(BC593*0.3048,2)&" m" -> 0.75 m | BB123: Fs2 | BC123: =BC109*BC59*BC82*BC68*0.001 -> 1.800097306 | BD123: k/ft | BJ123: Level 29 | BK123: =$BF$19 -> 0 | BL123: =$BC$68-BC746 ->  | BM123: 0
H124: Utilisation | P124: =BC546 -> 0.4668818107 | T124: =BC562 -> 0.4648218927 | X124: =BC578 -> 0.7256306384 | AB124: =BC594 -> 0.46852864 | BB124: FA | BD124: k/ft | BK124: =AVERAGE(BK123,BK125) -> 6.56166 | BL124: =BL123 ->  | BM124: 2.247191011
H125: Effective Width of Footing | P125: =ROUNDUP(BC547*0.3048,2)&" m" -> 2.3 m | T125: =ROUNDUP(BC563*0.3048,2)&" m" -> 2.31 m | X125: =ROUNDUP(BC579*0.3048,2)&" m" -> 2.28 m | AB125: =ROUNDUP(BC595*0.3048,2)&" m" -> 2.3 m | BB125: MV0A | BC125: =BC110*(BC10*0.5+(BC11-BC10)) -> 9.610495352 | BD125: k-ft/ft | BK125: =$BC$29 -> 13.12332 | BM125: 4.494382022
H126: Bearing Stress | P126: =ROUNDUP(BC548/0.020885434273039,2)&" kN/m2" -> 301.07 kN/m2 | T126: =ROUNDUP(BC564/0.020885434273039,2)&" kN/m2" -> 250.23 kN/m2 | X126: =ROUNDUP(BC580/0.020885434273039,2)&" kN/m2" -> 215.21 kN/m2 | AB126: =ROUNDUP(BC596/0.020885434273039,2)&" kN/m2" -> 250.84 kN/m2 | BB126: MV1A | BC126: =BC111*(BC11*0.5) -> 12.13957308 | BD126: k-ft/ft | BJ126: Level 30 | BK126: =$BF$19 -> 0 | BL126: =$BC$68-BC747 ->  | BM126: 0
H127: Fac. Bearing Resistance | P127: =ROUNDUP(BC549/0.020885434273039,2)&" kN/m2" -> 400 kN/m2 | T127: =ROUNDUP(BC565/0.020885434273039,2)&" kN/m2" -> 400 kN/m2 | X127: =ROUNDUP(BC581/0.020885434273039,2)&" kN/m2" -> 400 kN/m2 | AB127: =ROUNDUP(BC597/0.020885434273039,2)&" kN/m2" -> 400 kN/m2 | BB127: MV2A | BC127: =BC112*(BC6+(BC7+BC8+BC9)*0.5) -> 4.046524359 | BD127: k-ft/ft | BK127: =AVERAGE(BK126,BK128) -> 6.56166 | BL127: =BL126 ->  | BM127: 2.247191011
H128: Utilisation | P128: =BC551 -> 0.7526566402 | T128: =BC567 -> 0.6255702463 | X128: =BC583 -> 0.538005852 | AB128: =BC599 -> 0.6270843658 | AF128: =IF(MAX(P128:AE128,P124:AE124)>1,"Not Valid","Valid") -> Valid | BB128: MV3A | BC128: =BC113*(BC9*0.5+BC6+BC7+BC8) -> 2.360472543 | BD128: k-ft/ft | BK128: =$BC$29 -> 13.12332 | BM128: 4.494382022
BB129: MV4A | BC129: - | BD129: k-ft/ft | BJ129: Level 31 | BK129: =$BF$19 -> 0 | BL129: =$BC$68-BC748 ->  | BM129: 0
B130: Your Logo / Company Details Here | G130: Project: | AF130: By: | BB130: MV5A | BC130: - | BD130: k-ft/ft | BK130: =AVERAGE(BK129,BK131) -> 6.56166 | BL130: =BL129 ->  | BM130: 2.247191011
G131: Calculation: | M131: Miragrid MSE Wall Design with Bridge Abutment | BB131: MVsA | BC131: - | BD131: k-ft/ft | BK131: =$BC$29 -> 13.12332 | BM131: 4.494382022
G132: FHWA NHI-10-025 | AF132: Approved: | BB132: MVs1A | BC132: =BC117*((BC9+BC10)*0.5+BC6+BC7+BC8) -> 14.41574303 | BD132: k-ft/ft | BJ132: Level 32 | BK132: =$BF$19 -> 0 | BL132: =$BC$68-BC749 ->  | BM132: 0
G133: Sheet Number: | M133: 4 | T133: Date: | BB133: DLA | BC133: =BC34*(BC6+BC7) -> 58.06778761 | BD133: k-ft/ft | BK133: =AVERAGE(BK132,BK134) -> 6.56166 | BL133: =BL132 ->  | BM133: 2.247191011
BB134: LLA | BC134: =BC35*(BC6+BC7) -> 29.03389381 | BD134: k-ft/ft | BK134: =$BC$29 -> 13.12332 | BM134: 4.494382022
H135: Results - MSE Wall Design | BB135: MF1A | BC135: =BC118*(BC16/3) -> 0.6002056126 | BD135: k-ft/ft | BJ135: Level 33 | BK135: =$BF$19 -> 0 | BL135: =$BC$68-BC750 ->  | BM135: 0
BB136: MF2A | BC136: =BC119*(BC13+BC14+BC17) -> 2.661440265 | BD136: k-ft/ft | BK136: =AVERAGE(BK135,BK137) -> 6.56166 | BL136: =BL135 ->  | BM136: 2.247191011
H137: Sliding of the MSE Wall | BB137: MF3A | BC137: - | BD137: k-ft/ft | BK137: =$BC$29 -> 13.12332 | BM137: 4.494382022
BB138: MF4A | BC138: - | BD138: k-ft/ft | BJ138: Level 34 | BK138: =$BF$19 -> 0 | BL138: =$BC$68-BC751 ->  | BM138: 0
P139: Str 1 (Max) | T139: Str 1 (Min) | X139: Critical | BB139: MFs1A | BC139: =BC122*(BC16*0.5) -> 1.286154884 | BD139: k-ft/ft | BK139: =AVERAGE(BK138,BK140) -> 6.56166 | BL139: =BL138 ->  | BM139: 2.247191011
H140: Sliding Force | P140: =ROUNDUP(BC269*1.3558179483314,2)&" kN/m" -> 38.82 kN/m | T140: =ROUNDUP(BC277*1.3558179483314,2)&" kN/m" -> 25.94 kN/m | X140: =ROUNDUP(BC286*1.3558179483314,2)&" kN/m" -> 38.82 kN/m | BB140: MFs2A | BC140: - | BD140: k-ft/ft | BK140: =$BC$29 -> 13.12332 | BM140: 4.494382022
H141: Sliding Resistance | P141: =ROUNDUP(BC272*1.3558179483314,2)&" kN/m" -> 70.52 kN/m | T141: =ROUNDUP(BC280*1.3558179483314,2)&" kN/m" -> 51.76 kN/m | X141: =ROUNDUP(BC285*1.3558179483314,2)&" kN/m" -> 51.76 kN/m | BB141: MFAA | BC141: - | BD141: k-ft/ft | BJ141: Level 35 | BK141: =$BF$19 -> 0 | BL141: =$BC$68-BC752 ->  | BM141: 0
H142: Utilisation | P142: =BC274 -> 0.5505173737 | T142: =BC282 -> 0.5010021517 | X142: =BC288 -> 0.749999279 | AF142: =IF(MAX(P142:AA142)>1,"Not Valid","Valid") -> Valid | BB142: MV0B | BC142: =BC110*(0.5*BC10+(BC11+BC12-BC10)) -> 10.37933498 | BD142: k-ft/ft | BK142: =AVERAGE(BK141,BK143) -> 6.56166 | BL142: =BL141 ->  | BM142: 2.247191011
BB143: MV1B | BC143: =BC111*(BC12+BC11*0.5) -> 13.75818282 | BD143: k-ft/ft | BK143: =$BC$29 -> 13.12332 | BM143: 4.494382022
H144: Eccentricity of the MSE Wall | BB144: MV2B | BC144: =BC112*(BC12+BC6+(BC7+BC8+BC9)*0.5) -> 4.693968256 | BD144: k-ft/ft | BJ144: Level 36 | BK144: =$BF$19 -> 0 | BL144: =$BC$68-BC753 ->  | BM144: 0
BB145: MV3B | BC145: =BC113*(BC12+BC9*0.5+BC6+BC7+BC8) -> 2.630240833 | BD145: k-ft/ft | BK145: =AVERAGE(BK144,BK146) -> 6.56166 | BL145: =BL144 ->  | BM145: 2.247191011
P146: Str 1 (Max) | T146: Str 1 (Min) | X146: Critical | BB146: MV4B | BC146: =BC114*(BC29*0.5) -> 256.279876 | BD146: k-ft/ft | BK146: =$BC$29 -> 13.12332 | BM146: 4.494382022
H147: Total Overturning Moments | P147: =ROUNDUP(BC395*0.4133088,1)&" kNm/m" -> 128.8 kNm/m | T147: =ROUNDUP(BC417*0.4133088,1)&" kNm/m" -> 90.7 kNm/m | X147: =ROUNDUP(BC447*0.4133088,1)&" kNm/m" -> 128.8 kNm/m | BB147: MV5B | BC147: =BC115*(BC29*0.5) -> 47.8389102 | BD147: k-ft/ft | BJ147: Level 37 | BK147: =$BF$19 -> 0 | BL147: =$BC$68-BC754 ->  | BM147: 0
H148: Total Resisting Moments | P148: =ROUNDUP(BC393*0.4133088,1)&" kNm/m" -> 206.1 kNm/m | T148: =ROUNDUP(BC415*0.4133088,1)&" kNm/m" -> 151.4 kNm/m | X148: =ROUNDUP(BC448*0.4133088,1)&" kNm/m" -> 151.4 kNm/m | BB148: MVsB | BC148: =BC116*(BC29*0.5) -> 34.17065014 | BD148: k-ft/ft | BK148: =AVERAGE(BK147,BK149) -> 6.56166 | BL148: =BL147 ->  | BM148: 2.247191011
H149: Net Moment | P149: =ROUNDUP((BC393-BC395)*0.4133088,1)&" kNm/m" -> 77.4 kNm/m | T149: =ROUNDUP((BC415-BC417)*0.4133088,1)&" kNm/m" -> 60.8 kNm/m | X149: =ROUNDUP(BC449*0.4133088,1)&" kNm/m" -> 22.7 kNm/m | BB149: MVs1B | BC149: =BC117*((BC9+BC10)*0.5+BC6+BC7+BC8+BC12) -> 15.69714241 | BD149: k-ft/ft | BK149: =$BC$29 -> 13.12332 | BM149: 4.494382022
H150: Total Vertical Forces | P150: =ROUNDUP(BC392*1.3558179483314,2)&" kN/m" -> 112.85 kN/m | T150: =ROUNDUP(BC414*1.3558179483314,2)&" kN/m" -> 82.84 kN/m | X150: =ROUNDUP(BC450*1.3558179483314,2)&" kN/m" -> 82.84 kN/m | BB150: DLB | BC150: =BC34*(BC6+BC7+BC12) -> 69.68134513 | BD150: k-ft/ft | BJ150: Level 38 | BK150: =$BF$19 -> 0 | BL150: =$BC$68-BC755 ->  | BM150: 0
H151: Eccentricity of Resultant | P151: =ROUNDUP(BC398*0.3048,2)&" m" -> 1.32 m | T151: =ROUNDUP(BC420*0.3048,2)&" m" -> 1.27 m | X151: =ROUNDUP(BC452*0.3048,2)&" m" -> 1.73 m | BB151: LLB | BC151: =BC35*(BC6+BC7+BC12) -> 34.84067257 | BD151: k-ft/ft | BK151: =AVERAGE(BK150,BK152) -> 6.56166 | BL151: =BL150 ->  | BM151: 2.247191011
H152: Limiting Eccentricity | P152: =ROUNDUP(BC399*0.3048,2)&" m" -> 1 m | T152: =ROUNDUP(BC421*0.3048,2)&" m" -> 1 m | X152: =ROUNDUP(BC453*0.3048,2)&" m" -> 1 m | BB152: MF1B | BC152: =BC118*(BC16/3+BC68) -> 10.24636724 | BD152: k-ft/ft | BK152: =$BC$29 -> 13.12332 | BM152: 4.494382022
H153: Utilisation | P153: =BC400 -> 1.314359623 | T153: =BC422 -> 1.266983649 | X153: =BC455 -> 1.726772651 | AF153: =IF(MAX(P153:AA153)>1,"Not Valid","Valid") -> Not Valid | BB153: MF2B | BC153: =BC119*(BC13+BC14+BC17+BC68) -> 20.80762389 | BD153: k-ft/ft | BJ153: Level 39 | BK153: =$BF$19 -> 0 | BL153: =$BC$68-BC756 ->  | BM153: 0
BB154: MF3B | BC154: =BC120*(BC68*0.5) -> 51.67586588 | BD154: k-ft/ft | BK154: =AVERAGE(BK153,BK155) -> 6.56166 | BL154: =BL153 ->  | BM154: 2.247191011
H155: Bearing Resistance at Base of MSE Wall | BB155: MF4B | BC155: =BC121*(BC68/3) -> 92.27833193 | BD155: k-ft/ft | BK155: =$BC$29 -> 13.12332 | BM155: 4.494382022
BB156: MFs1B | BC156: =BC122*(BC16*0.5+BC68) -> 15.06638579 | BD156: k-ft/ft | BJ156: Level 40 | BK156: =$BF$19 -> 0 | BL156: =$BC$68-BC757 ->  | BM156: 0
P157: Str 1 (Max) | T157: Str 1 (Min) | X157: Ser 1 | AB157: Critical | BB157: MFs2B | BC157: =BC123*(BC68*0.5) -> 22.14679966 | BD157: k-ft/ft | BK157: =AVERAGE(BK156,BK158) -> 6.56166 | BL157: =BL156 ->  | BM157: 2.247191011
H158: Total Overturning Moment | P158: =ROUNDUP(BC616*0.4133088,1)&" kNm/m" -> 128.8 kNm/m | T158: =ROUNDUP(BC643*0.4133088,1)&" kNm/m" -> 90.7 kNm/m | X158: =ROUNDUP(BC670*0.4133088,1)&" kNm/m" -> 85.9 kNm/m | AB158: =ROUNDUP(BC684*0.4133088,1)&" kNm/m" -> 128.8 kNm/m | BB158: MFAB | BC158: - | BD158: k-ft/ft | BK158: =$BC$29 -> 13.12332 | BM158: 4.494382022
H159: Total Resisting Moment | P159: =ROUNDUP(BC615*0.4133088,1)&" kNm/m" -> 194.5 kNm/m | T159: =ROUNDUP(BC642*0.4133088,1)&" kNm/m" -> 150.5 kNm/m | X159: =ROUNDUP(BC669*0.4133088,1)&" kNm/m" -> 139.9 kNm/m | AB159: =ROUNDUP(BC685*0.4133088,1)&" kNm/m" -> 150.5 kNm/m | BJ159: Level 41 | BK159: =$BF$19 -> 0 | BL159: =$BC$68-BC758 ->  | BM159: 0
H160: Net Moment | P160: =ROUNDUP(BC617*0.4133088,1)&" kNm/m" -> 65.7 kNm/m | T160: =ROUNDUP(BC644*0.4133088,1)&" kNm/m" -> 59.8 kNm/m | X160: =ROUNDUP(BC671*0.4133088,1)&" kNm/m" -> 54 kNm/m | AB160: =ROUNDUP(BC686*0.4133088,1)&" kNm/m" -> 21.7 kNm/m | BK160: =AVERAGE(BK159,BK161) -> 6.56166 | BL160: =BL159 ->  | BM160: 2.247191011 | BR160: 0 | BS160: =MAX(X102,X113,AB128,X128,T128,P128) -> 0.7526566402 | BT160: =X113 -> 0.5632944227 | BU160: =#REF! ->  | BV160: =MAX(P128:AE128) -> 0.7526566402 | BX160: 0 | BY160: 1
H161: Total Vertical Forces | P161: =ROUNDUP(BC614*1.3558179483314,2)&" kN/m" -> 97.19 kN/m | T161: =ROUNDUP(BC641*1.3558179483314,2)&" kN/m" -> 75.2 kN/m | X161: =ROUNDUP(BC668*1.3558179483314,2)&" kN/m" -> 69.9 kN/m | AB161: =ROUNDUP(BC687*1.3558179483314,2)&" kN/m" -> 75.2 kN/m | BB161: Load Combinations | BK161: =$BC$29 -> 13.12332 | BM161: 4.494382022 | BR161: =N13 -> 1 | BS161: =BS160 -> 0.7526566402 | BT161: =BT160 -> 0.5632944227 | BU161: =BU160 ->  | BV161: =BV160 -> 0.7526566402 | BX161: 200 | BY161: 1
H162: Eccentricity of Resultant | P162: =ROUNDUP(BC619*0.3048,2)&" m" -> 1.33 m | T162: =ROUNDUP(BC646*0.3048,2)&" m" -> 1.21 m | X162: =ROUNDUP(BC673*0.3048,2)&" m" -> 1.23 m | AB162: =ROUNDUP(BC689*0.3048,2)&" m" -> 1.72 m | BB162: Load Factors EV | BJ162: Level 42 | BK162: =$BF$19 -> 0 | BL162: =$BC$68-BC759 ->  | BM162: 0 | BR162: =BR161 -> 1 | BS162: 0 | BT162: 0 | BU162: 0 | BV162: 0
H163: Limiting Eccentricity | P163: =ROUNDUP(BC620*0.3048,2)&" m" -> 1 m | T163: =ROUNDUP(BC647*0.3048,2)&" m" -> 1 m | X163: =ROUNDUP(BC674*0.3048,2)&" m" -> 0.67 m | AB163: =ROUNDUP(BC690*0.3048,2)&" m" -> 1 m | BB163: Strength 1 (Max) | BC163: =$N$54 -> 1.35 | BK163: =AVERAGE(BK162,BK164) -> 6.56166 | BL163: =BL162 ->  | BM163: 2.247191011
H164: Utilisation | P164: =BC621 -> 1.324175903 | T164: =BC648 -> 1.204992101 | X164: =BC675 -> 1.841679502 | AB164: =BC691 -> 1.711481813 | BB164: Strength 2 (Min) | BC164: =$N$55 -> 1 | BK164: =$BC$29 -> 13.12332 | BM164: 4.494382022
H165: Effective Width of Footing | P165: =ROUNDUP(BC622*0.3048,2)&" m" -> 1.36 m | T165: =ROUNDUP(BC649*0.3048,2)&" m" -> 1.6 m | X165: =ROUNDUP(BC676*0.3048,2)&" m" -> 1.55 m | AB165: =ROUNDUP(BC692*0.3048,2)&" m" -> 0.58 m | BB165: Service 1 | BC165: =$N$56 -> 1 | BJ165: Level 43 | BK165: =$BF$19 -> 0 | BL165: =$BC$68-BC760 ->  | BM165: 0
H166: Bearing Stress | P166: =ROUNDUP(BC624/0.020885434273039,2)&" kN/m2" -> 849.35 kN/m2 | T166: =ROUNDUP(BC651/0.020885434273039,2)&" kN/m2" -> 570.58 kN/m2 | X166: =ROUNDUP(BC678/0.020885434273039,2)&" kN/m2" -> 542.37 kN/m2 | AB166: =ROUNDUP(BC695/0.020885434273039,2)&" kN/m2" -> 1478.05 kN/m2 | BB166: Load Factors ES | BK166: =AVERAGE(BK165,BK167) -> 6.56166 | BL166: =BL165 ->  | BM166: 2.247191011
H167: Fac. Bearing Resistance | P167: =ROUNDUP(BC625/0.020885434273039,2)&" kN/m2" -> 500 kN/m2 | T167: =ROUNDUP(BC652/0.020885434273039,2)&" kN/m2" -> 500 kN/m2 | X167: =ROUNDUP(BC679/0.020885434273039,2)&" kN/m2" -> 500 kN/m2 | AB167: =ROUNDUP(BC696/0.020885434273039,2)&" kN/m2" -> 500 kN/m2 | BB167: Strength 1 (Max) | BC167: =$N$58 -> 1.5 | BK167: =$BC$29 -> 13.12332 | BM167: =$BG$5/MAX($BE$6:$BF$26)*BK167 -> 4.494382022
H168: Utilisation | P168: =BC627 -> 1.698681681 | T168: =BC654 -> 1.141148779 | X168: =BC681 -> 1.084721074 | AB168: =BC698 -> 2.956099789 | AF168: =IF(MAX(P168:AE168,P164:AE164)>1,"Not Valid","Valid") -> Not Valid | BB168: Strength 2 (Min) | BC168: =$N$59 -> 0.75 | BJ168: Level 44 | BK168: =$BF$19 -> 0 | BL168: =$BC$68-BC761 ->  | BM168: 0 | BN168: =IFERROR($BG$5/MAX($BE$6:$BF$26)*BL168,NA()) -> 
BB169: Service 1 | BC169: =$N$60 -> 1 | BK169: =AVERAGE(BK168,BK170) -> 6.56166 | BL169: =BL168 ->  | BM169: 2.247191011
B170: Your Logo / Company Details Here | G170: Project: | AF170: By: | BB170: Load Factors EH | BK170: =$BC$29 -> 13.12332 | BM170: 4.494382022
G171: Calculation: | M171: Miragrid MSE Wall Design with Bridge Abutment | BB171: Strength 1 (Max) | BC171: =$N$62 -> 1.5 | BJ171: Level 45 | BK171: =$BF$19 -> 0 | BL171: =$BC$68-BC762 ->  | BM171: 0
G172: FHWA NHI-10-025 | AF172: Approved: | BB172: Strength 2 (Min) | BC172: =$N$63 -> 0.9 | BK172: =AVERAGE(BK171,BK173) -> 6.56166 | BL172: =BL171 ->  | BM172: 2.247191011
G173: Sheet Number: | M173: 5 | T173: Date: | BB173: Service 1 | BC173: =$N$64 -> 1 | BK173: =$BC$29 -> 13.12332 | BM173: 4.494382022
BB174: Load Factors LL | BJ174: Level 46 | BK174: =$BF$19 -> 0 | BL174: =$BC$68-BC763 ->  | BM174: 0
H175: Results - Design of Soil Reinforcements | BB175: Strength 1 (Max) | BC175: =$AB$54 -> 1.75 | BK175: =AVERAGE(BK174,BK176) -> 6.56166 | BL175: =BL174 ->  | BM175: 2.247191011
BB176: Strength 2 (Min) | BC176: =$AB$55 -> 1.75 | BK176: =$BC$29 -> 13.12332 | BM176: 4.494382022
H177: Z | K177: σH | N177: Tmax | Q177: Geogrid Type | V177: Tr | Y177: Le | AB177: Req. Le | AE177: Utilisation | BB177: Service 1 | BC177: =$AB$56 -> 1 | BJ177: Level 47 | BK177: =$BF$19 -> 0 | BL177: =$BC$68-BC764 ->  | BM177: 0
E178: Level 1 | H178: =IFERROR(BC718*0.3048,"") -> 0.2999990952 | K178: =IFERROR(BC824*0.001/0.020885434273039,"") -> 93.19246183 | N178: =IFERROR(BC928*0.001*1.3558179483314,"") -> 5.194702148 | Q178: =IF(H178="","",IF(N178/1.3558179483314<$BU$6,$BV$6,INDEX($BV$6:$BV$14,MATCH(N178/1.3558179483314,$BU$6:$BU$14,1)+1))) -> Miragrid 8XT | V178: =IF(H178="","",VLOOKUP(Q178,$BM$6:$BU$14,9,FALSE)*1.3558179483314) -> 6.032379039 | Y178: =IFERROR(BC1047*0.3048,"") -> 0.7999975872 | AB178: =IF(H178="","",BC1151*0.3048) -> 15.13847662 | AE178: =IF(H178="","",BC1203) -> 18.92315285 | BB178: Load Factors DC | BK178: =AVERAGE(BK177,BK179) -> 6.56166 | BL178: =BL177 ->  | BM178: 2.247191011
E179: Level 2 | H179: =IFERROR(BC719*0.3048,"") -> 0.8999972856 | K179: =IFERROR(BC825*0.001/0.020885434273039,"") -> 89.66136909 | N179: =IFERROR(BC929*0.001*1.3558179483314,"") -> 4.997873192 | Q179: =IF(H179="","",IF(N179/1.3558179483314<$BU$6,$BV$6,INDEX($BV$6:$BV$14,MATCH(N179/1.3558179483314,$BU$6:$BU$14,1)+1))) -> Miragrid 8XT | V179: =IF(H179="","",VLOOKUP(Q179,$BM$6:$BU$14,9,FALSE)*1.3558179483314) -> 6.032379039 | Y179: =IFERROR(BC1048*0.3048,"") -> 0.7999975872 | AB179: =IF(H179="","",BC1152*0.3048) -> 4.854958271 | AE179: 6.068716142 | BB179: Strength 1 (Max) | BC179: =$AB$58 -> 1.25 | BK179: =$BC$29 -> 13.12332 | BM179: 4.494382022
E180: Level 3 | H180: 1.499995476 | K180: 87.25235867 | N180: 4.863590961 | Q180: =IF(H180="","",IF(N180/1.3558179483314<$BU$6,$BV$6,INDEX($BV$6:$BV$14,MATCH(N180/1.3558179483314,$BU$6:$BU$14,1)+1))) -> Miragrid 8XT | V180: 6.032379039 | Y180: 0.7999975872 | AB180: 2.834709517 | AE180: 3.543397583 | BB180: Strength 2 (Min) | BC180: =$AB$59 -> 0.9 | BJ180: Level 48 | BK180: =$BF$19 -> 0 | BL180: =$BC$68-BC765 ->  | BM180: 0
E181: Level 4 | H181: 2.099993666 | K181: 85.68093313 | N181: 4.775997099 | Q181: =IF(H181="","",IF(N181/1.3558179483314<$BU$6,$BV$6,INDEX($BV$6:$BV$14,MATCH(N181/1.3558179483314,$BU$6:$BU$14,1)+1))) -> Miragrid 7XT | V181: 4.809599504 | Y181: 0.7999975872 | AB181: 1.988325754 | AE181: 2.485414688 | BB181: Service 1 | BC181: =$AB$60 -> 1 | BK181: =AVERAGE(BK180,BK182) -> 6.56166 | BL181: =BL180 ->  | BM181: 2.247191011
E182: Level 5 | H182: 2.699991857 | K182: 84.75127699 | N182: 4.724176527 | Q182: =IF(H182="","",IF(N182/1.3558179483314<$BU$6,$BV$6,INDEX($BV$6:$BV$14,MATCH(N182/1.3558179483314,$BU$6:$BU$14,1)+1))) -> Miragrid 7XT | V182: 4.809599504 | Y182: 1.119996622 | AB182: 1.529696001 | AE182: 1.36580412 | BB182: Load Factors FR | BK182: =$BC$29 -> 13.12332 | BM182: 4.494382022
E183: Level 6 | H183: 3.299990047 | K183: 84.32420053 | N183: 4.700370577 | Q183: =IF(H183="","",IF(N183/1.3558179483314<$BU$6,$BV$6,INDEX($BV$6:$BV$14,MATCH(N183/1.3558179483314,$BU$6:$BU$14,1)+1))) -> Miragrid 7XT | V183: 4.809599504 | Y183: 1.479995536 | AB183: 1.245262579 | AE183: 0.8413961718 | BB183: Strength 1 (Max) | BC183: =$AB$62 -> 1 | BJ183: Level 49 | BK183: =$BF$19 -> 0 | BL183: =$BC$68-BC766 ->  | BM183: 0
E184: Level 7 | H184: 3.899988238 | K184: 84.29805104 | N184: 4.698912961 | Q184: =IF(H184="","",IF(N184/1.3558179483314<$BU$6,$BV$6,INDEX($BV$6:$BV$14,MATCH(N184/1.3558179483314,$BU$6:$BU$14,1)+1))) -> Miragrid 7XT | V184: 4.809599504 | Y184: 1.839994451 | AB184: 1.053356966 | AE184: 0.5724783386 | BB184: Strength 2 (Min) | BC184: =$AB$63 -> 1 | BK184: =AVERAGE(BK183,BK185) -> 6.56166 | BL184: =BL183 ->  | BM184: 2.247191011
E185: Level 8 | H185: 4.499986428 | K185: 84.59685825 | N185: 4.71556897 | Q185: =IF(H185="","",IF(N185/1.3558179483314<$BU$6,$BV$6,INDEX($BV$6:$BV$14,MATCH(N185/1.3558179483314,$BU$6:$BU$14,1)+1))) -> Miragrid 7XT | V185: 4.809599504 | Y185: 2.199993365 | AB185: 0.9161453162 | AE185: 0.4164309451 | BB185: Service 1 | BC185: =$AB$64 -> 1 | BK185: =$BC$29 -> 13.12332 | BM185: 4.494382022
E186: Level 9 | H186: 5.099984618 | K186: 85.35654525 | N186: 4.757915181 | Q186: =IF(H186="","",IF(N186/1.3558179483314<$BU$6,$BV$6,INDEX($BV$6:$BV$14,MATCH(N186/1.3558179483314,$BU$6:$BU$14,1)+1))) -> Miragrid 7XT | V186: 4.809599504 | Y186: 2.559992279 | AB186: 0.9144 | AE186: 0.3571885773 | BJ186: Level 50 | BK186: =$BF$19 -> 0 | BL186: =$BC$68-BC767 ->  | BM186: 0
E187: Level 10 | H187: 5.699982809 | K187: 86.34147777 | N187: 4.812816951 | Q187: =IF(H187="","",IF(N187/1.3558179483314<$BU$6,$BV$6,INDEX($BV$6:$BV$14,MATCH(N187/1.3558179483314,$BU$6:$BU$14,1)+1))) -> Miragrid 8XT | V187: 6.032379039 | Y187: 2.919991193 | AB187: 0.9144 | AE187: 0.3131516294 | BB187: Resistance Factors | BK187: =AVERAGE(BK186,BK188) -> 6.56166 | BL187: =BL186 ->  | BM187: 2.247191011
E188: Level 11 | H188: 6.299980999 | K188: 87.51314179 | N188: 4.878127444 | Q188: =IF(H188="","",IF(N188/1.3558179483314<$BU$6,$BV$6,INDEX($BV$6:$BV$14,MATCH(N188/1.3558179483314,$BU$6:$BU$14,1)+1))) -> Miragrid 8XT | V188: 6.032379039 | Y188: 3.279990108 | AB188: 0.9144 | AE188: 0.2787813286 | BB188: Sliding of Spread Footing on MSE Wall, φs | BC188: =$V$68 -> 0.8 | BK188: =$BC$29 -> 13.12332 | BM188: 4.494382022
E189: Level 12 | H189: 6.89997919 | K189: 88.84329068 | N189: 3.301514764 | Q189: =IF(H189="","",IF(N189/1.3558179483314<$BU$6,$BV$6,INDEX($BV$6:$BV$14,MATCH(N189/1.3558179483314,$BU$6:$BU$14,1)+1))) -> Miragrid 5XT | V189: 3.831375876 | Y189: 3.639989022 | AB189: 0.9144 | AE189: 0.2512095489 | BB189: Sliding of MSE Wall on Foundation Soil, φs | BC189: =$V$69 -> 1
E190: Level 13 | H190: 7.299977983 | K190: 89.80664987 | N190: 2.502985691 | Q190: =IF(H190="","",IF(N190/1.3558179483314<$BU$6,$BV$6,INDEX($BV$6:$BV$14,MATCH(N190/1.3558179483314,$BU$6:$BU$14,1)+1))) -> Miragrid 3XT | V190: 2.853152248 | Y190: 3.879988298 | AB190: 0.9144 | AE190: 0.2356708139 | BB190: Bearing Resistance, φb | BC190: =$V$70 -> 0.65
E191: Level 14 | Q191: =IF(H191="","",IF(N191/1.3558179483314<$BU$6,$BV$6,INDEX($BV$6:$BV$14,MATCH(N191/1.3558179483314,$BU$6:$BU$14,1)+1))) ->  | BB191: Tensile Resistance & Connectors, φt | BC191: =$V$71 -> 0.9 | BG191: =Y26 -> 4 | BH191: 0 | BI191: 0 | BJ191: 0
E192: Level 15 | Q192: =IF(H192="","",IF(N192/1.3558179483314<$BU$6,$BV$6,INDEX($BV$6:$BV$14,MATCH(N192/1.3558179483314,$BU$6:$BU$14,1)+1))) ->  | BB192: Pullout Resistance, φp | BC192: =$V$72 -> 0.9 | BG192: =BG191 -> 4 | BH192: =X142 -> 0.749999279 | BI192: =MAX(X153,X142,AB168,X168,T168,P168) -> 2.956099789 | BJ192: =MAX(P168:AE168) -> 2.956099789
E193: Level 16 | Q193: =IF(H193="","",IF(N193/1.3558179483314<$BU$6,$BV$6,INDEX($BV$6:$BV$14,MATCH(N193/1.3558179483314,$BU$6:$BU$14,1)+1))) ->  | BG193: 0 | BH193: =BH192 -> 0.749999279 | BI193: =BI192 -> 2.956099789 | BJ193: =BJ192 -> 2.956099789
E194: Level 17 | Q194: =IF(H194="","",IF(N194/1.3558179483314<$BU$6,$BV$6,INDEX($BV$6:$BV$14,MATCH(N194/1.3558179483314,$BU$6:$BU$14,1)+1))) ->  | BB194: Sliding Stability
E195: Level 18 | Q195: =IF(H195="","",IF(N195/1.3558179483314<$BU$6,$BV$6,INDEX($BV$6:$BV$14,MATCH(N195/1.3558179483314,$BU$6:$BU$14,1)+1))) ->  | BB195: Factored Resistance against failure by sliding
E196: Level 19 | Q196: =IF(H196="","",IF(N196/1.3558179483314<$BU$6,$BV$6,INDEX($BV$6:$BV$14,MATCH(N196/1.3558179483314,$BU$6:$BU$14,1)+1))) ->  | BB196: Maximum Sliding Load Factor, γLS | BE196: Not required for slopes, no surcharge loads
E197: Level 20 | Q197: =IF(H197="","",IF(N197/1.3558179483314<$BU$6,$BV$6,INDEX($BV$6:$BV$14,MATCH(N197/1.3558179483314,$BU$6:$BU$14,1)+1))) ->  | BB197: Factored Driving Force, Pd | BC197: =IF(OR(BC26=0,BC30="Yes"),BC171*BC85+BC196*BC89,BC171*BC94) -> 16.87591224 | BD197: k/lft
E198: Level 21 | Q198: =IF(H198="","",IF(N198/1.3558179483314<$BU$6,$BV$6,INDEX($BV$6:$BV$14,MATCH(N198/1.3558179483314,$BU$6:$BU$14,1)+1))) ->  | BB198: μ | BC198: =TAN(RADIANS(BC45)) -> 0.6248693519
E199: Level 22 | Q199: =IF(H199="","",IF(N199/1.3558179483314<$BU$6,$BV$6,INDEX($BV$6:$BV$14,MATCH(N199/1.3558179483314,$BU$6:$BU$14,1)+1))) ->  | BB199: Factored Sliding Resistance, Rr | BC199: =IF(BC26=0,BC164*BC91*BC198,(BC164*(BC91+BC92)+BC171*BC86+BC196*(BC90))*BC198) -> 24.40562907 | BD199: k/lft
E200: Level 23 | Q200: =IF(H200="","",IF(N200/1.3558179483314<$BU$6,$BV$6,INDEX($BV$6:$BV$14,MATCH(N200/1.3558179483314,$BU$6:$BU$14,1)+1))) ->  | BB200: Utilisation | BC200: =BC197/BC199 -> 0.6914762243
... 852 more rows
